fUSD/lending_fUSD_20240611
["ID","MTS","AMOUNT","RATE_DAILY","PERIOD"]
[329098019,1718103068647,-752.11,0.00025205,2]
[329098020,1718103068657,-655.83,0.00025205,2]
[329098021,1718103068668,-270.023063,0.00025205,7]
[329098022,1718103068678,-2058.77,0.00025205,2]
[329098023,1718103068688,-500.0,0.00025205,2]
[329098024,1718103068700,-2260.46,0.00025205,2]
[329098025,1718103068710,-1588.0,0.00025205,2]
[329098026,1718103068720,-1174.18,0.00025205,2]
[329098027,1718103068731,-500.0,0.00025205,2]
[329098028,1718103068741,-500.0,0.00025205,2]
[329098029,1718103068751,-236.590907,0.00025205,7]
[329098030,1718103068761,-236.590907,0.00025205,7]
[329098031,1718103068773,-236.590907,0.00025205,7]
[329098032,1718103068783,-296.518875,0.00025205,7]
[329098033,1718103068793,-236.590907,0.00025205,7]
[329098034,1718103068804,-500.0,0.00025205,2]
[329098035,1718103068814,-296.518875,0.00025205,7]
[329098036,1718103068825,-1694.76,0.00025205,2]
[329098037,1718103068836,-803.31,0.00025205,2]
[329098038,1718103068846,-296.518875,0.00025205,7]
[329098039,1718103068857,-296.518875,0.00025205,7]
[329098040,1718103068867,-995.49,0.00025205,2]
[329098041,1718103068878,-500.0,0.00025205,2]
[329098042,1718103068888,-500.0,0.00025205,2]
[329098043,1718103068899,-1020.06,0.00025205,2]
[329098044,1718103068909,-860.63,0.00025205,2]
[329098045,1718103068919,-473.378943,0.00025205,7]
[329098046,1718103068930,-473.378943,0.00025205,7]
[329098047,1718103068940,-151.0,0.00025205,7]
[329098048,1718103068951,-151.0,0.00025205,7]
[329098049,1718103068961,-599.38,0.00025205,2]
[329098050,1718103068974,-151.0,0.00025205,7]
[329098051,1718103068986,-252.028932,0.00025205,7]
[329098052,1718103068998,-473.378943,0.00025205,7]
[329098053,1718103069008,-473.378943,0.00025205,7]
[329098054,1718103069022,-940.8,0.00025205,2]
[329098055,1718103069032,-500.0,0.00025205,2]
[329098056,1718103069043,-1420.19,0.00025205,2]
[329098057,1718103069056,-2225.45,0.00025205,2]
[329098058,1718103069067,-243.796985,0.00025205,7]
[329098059,1718103069078,-243.796985,0.00025205,7]
[329098060,1718103069088,-500.0,0.00025205,2]
[329098061,1718103069099,-243.796985,0.00025205,7]
[329098062,1718103069110,-243.796985,0.00025205,7]
[329098063,1718103069121,-2026.42,0.00025205,2]
[329098064,1718103069131,-165.20505,0.00025205,7]
[329098065,1718103069142,-165.20505,0.00025205,7]
[329098066,1718103069158,-2906.52,0.00025205,2]
[329098067,1718103069169,-165.20505,0.00025205,7]
[329098068,1718103069180,-500.0,0.00025205,2]
[329098069,1718103069190,-165.20505,0.00025205,7]
[329098070,1718103069201,-163.288509,0.00025205,7]
[329098071,1718103069212,-163.288509,0.00025205,7]
[329098072,1718103069222,-410.07761231,0.00025205,2]
[329098073,1718103069233,-646.123264,0.00025205,7]
[329098074,1718103069244,-646.123264,0.00025205,7]
[329098075,1718103069255,-163.288509,0.00025205,7]
[329098076,1718103069267,-646.123264,0.00025205,7]
[329098077,1718103069278,-163.288509,0.00025205,7]
[329098078,1718103069288,-646.123264,0.00025205,7]
[329098079,1718103069298,-500.0,0.00025205,2]
[329098080,1718103069309,-816.843791,0.00025205,7]
[329098081,1718103069319,-500.0,0.00025205,2]
[329098082,1718103069330,-816.843791,0.00025205,7]
[329098083,1718103069340,-500.0,0.00025205,2]
[329098084,1718103069351,-500.0,0.00025205,2]
[329098085,1718103069361,-500.0,0.00025205,2]
[329098086,1718103069372,-164.176193,0.00025205,7]
[329098087,1718103069382,-164.176193,0.00025205,7]
[329098088,1718103069392,-816.843791,0.00025205,7]
[329098089,1718103069403,-816.843791,0.00025205,7]
[329098090,1718103069413,-500.0,0.00025205,2]
[329098091,1718103069423,-151.0,0.00025205,7]
[329098092,1718103069433,-151.0,0.00025205,7]
[329098093,1718103069444,-500.0,0.00025205,2]
[329098094,1718103069454,-500.0,0.00025205,2]
[329098095,1718103069464,-821.93,0.00025205,2]
[329098096,1718103069475,-154.372811,0.00025205,7]
[329098097,1718103069485,-154.372811,0.00025205,7]
[329098098,1718103069496,-172.24,0.00025205,2]
[329098099,1718103069507,-714.51,0.00025205,2]
[329098100,1718103069519,-154.372811,0.00025205,7]
[329098101,1718103069529,-154.372811,0.00025205,7]
[329098102,1718103069540,-500.0,0.00025205,2]
[329098103,1718103069551,-576.65,0.00025205,2]
[329098104,1718103069561,-500.0,0.00025205,2]
[329098105,1718103069571,-595.02141681,0.00025205,2]
[329098106,1718103069583,-697.03,0.00025205,2]
[329098107,1718103069594,-500.0,0.00025205,2]
[329098108,1718103069604,-837.720545,0.00025205,7]
[329098109,1718103069615,-837.720545,0.00025205,7]
[329098110,1718103069626,-1049.071361,0.00025205,7]
[329098111,1718103069636,-1049.071361,0.00025205,7]
[329098112,1718103069647,-500.0,0.00025205,2]
[329098113,1718103069657,-520.77,0.00025205,2]
[329098114,1718103069668,-500.0,0.00025205,2]
[329098115,1718103069678,-405.08,0.00025205,2]
[329098116,1718103069689,-1049.071361,0.00025205,7]
[329098117,1718103069700,-1049.071361,0.00025205,7]
[329098118,1718103069710,-500.0,0.00025205,2]
[329098119,1718103069722,-837.720545,0.00025205,7]
[329098120,1718103069733,-1080.442381,0.00025205,7]
[329098121,1718103069744,-574.30343383,0.00025205,2]
[329098122,1718103069756,-837.720545,0.00025205,7]
[329098123,1718103069768,-1080.442381,0.00025205,7]
[329098124,1718103069778,-151.0,0.00025205,7]
[329098125,1718103069789,-644.63,0.00025205,2]
[329098126,1718103069800,-2402.32,0.00025205,2]
[329098127,1718103069811,-1080.442381,0.00025205,7]
[329098128,1718103069822,-288.664985,0.00025205,7]
[329098129,1718103069833,-151.0,0.00025205,7]
[329098130,1718103069844,-1080.442381,0.00025205,7]
[329098131,1718103069855,-500.0,0.00025205,2]
[329098132,1718103069866,-288.664985,0.00025205,7]
[329098133,1718103069877,-500.0,0.00025205,2]
[329098134,1718103069888,-288.664985,0.00025205,7]
[329098135,1718103069900,-288.664985,0.00025205,7]
[329098136,1718103069911,-500.0,0.00025205,2]
[329098137,1718103069923,-500.0,0.00025205,2]
[329098138,1718103069935,-1518.18,0.00025205,2]
[329098139,1718103069946,-500.0,0.00025205,2]
[329098140,1718103069957,-6631.54,0.00025205,2]
[329098141,1718103069968,-500.0,0.00025205,2]
[329098142,1718103069982,-500.0,0.00025205,2]
[329098143,1718103069993,-3646.17,0.00025205,2]
[329098144,1718103070004,-1046.79,0.00025205,2]
[329098145,1718103070018,-595.03,0.00025205,2]
[329098146,1718103070029,-500.0,0.00025205,2]
[329098147,1718103070041,-678.28,0.00025205,2]
[329098148,1718103070054,-500.0,0.00025205,2]
[329098149,1718103070066,-500.0,0.00025205,2]
[329098150,1718103070078,-3246.46,0.00025205,2]
[329098151,1718103070089,-500.0,0.00025205,2]
[329098152,1718103070101,-1782.21,0.00025205,2]
[329098153,1718103070112,-500.0,0.00025205,2]
[329098154,1718103070122,-500.0,0.00025205,2]
[329098155,1718103070133,-1863.65,0.00025205,2]
[329098156,1718103070144,-986.96,0.00025205,2]
[329098157,1718103070160,-60128.61,0.00025205,2]
[329098158,1718103070171,-590.58,0.00025205,2]
[329098159,1718103070182,-704.25,0.00025205,2]
[329098160,1718103070194,-500.0,0.00025205,2]
[329098161,1718103070205,-694.504821,0.00025205,7]
[329098162,1718103070216,-694.504821,0.00025205,7]
[329098163,1718103070228,-694.504821,0.00025205,7]
[329098164,1718103070238,-694.504821,0.00025205,7]
[329098165,1718103070249,-500.0,0.00025205,2]
[329098166,1718103070261,-3650.9,0.00025205,2]
[329098167,1718103070275,-1160.72,0.00025205,2]
[329098168,1718103070286,-500.0,0.00025205,2]
[329098169,1718103070297,-16093.83,0.00025205,2]
[329098170,1718103070308,-3600.94,0.00025205,2]
[329098171,1718103070319,-500.0,0.00025205,2]
[329098172,1718103070330,-500.0,0.00025205,2]
[329098173,1718103070341,-719.54,0.00025205,2]
[329098174,1718103070353,-1052.76,0.00025205,2]
[329098175,1718103070364,-2155.0,0.00025205,2]
[329098176,1718103070376,-6544.77,0.00025205,2]
[329098177,1718103070387,-740.04,0.00025205,2]
[329098178,1718103070400,-1888.46,0.00025205,2]
[329098179,1718103070411,-742.553418,0.00025205,7]
[329098180,1718103070423,-742.553418,0.00025205,7]
[329098181,1718103070435,-742.553418,0.00025205,7]
[329098182,1718103070447,-515.28088487,0.00025205,2]
[329098183,1718103070459,-742.553418,0.00025205,7]
[329098184,1718103070472,-2806.67,0.00025205,2]
[329098185,1718103070483,-1554.02,0.00025205,2]
[329098186,1718103070495,-500.0,0.00025205,2]
[329098187,1718103070506,-500.0,0.00025205,2]
[329098188,1718103070519,-1798.56,0.00025205,2]
[329098189,1718103070530,-5181.24,0.00025205,2]
[329098190,1718103070542,-500.0,0.00025205,2]
[329098191,1718103070553,-500.0,0.00025205,2]
[329098192,1718103070565,-648.83,0.00025205,2]
[329098193,1718103070577,-1550.43,0.00025205,2]
[329098194,1718103070588,-556.8,0.00025205,2]
[329098195,1718103070599,-5415.76,0.00025205,2]
[329098196,1718103070611,-2910.91,0.00025205,2]
[329098197,1718103070622,-2813.33,0.00025205,2]
[329098198,1718103070632,-5210.45,0.00025205,2]
[329098199,1718103070643,-500.0,0.00025205,2]
[329098200,1718103070655,-2614.87,0.00025205,2]
[329098201,1718103070666,-780.220663,0.00025205,7]
[329098202,1718103070677,-780.220663,0.00025205,7]
[329098203,1718103070688,-2508.57,0.00025205,2]
[329098204,1718103070700,-524.87,0.00025205,2]
[329098205,1718103070712,-1490.4,0.00025205,2]
[329098206,1718103070723,-500.0,0.00025205,2]
[329098207,1718103070734,-780.220663,0.00025205,7]
[329098208,1718103070745,-780.220663,0.00025205,7]
[329098209,1718103070757,-4575.68,0.00025205,2]
[329098210,1718103070769,-23273.76,0.00025205,2]
[329098211,1718103070780,-1385.62,0.00025205,2]
[329098212,1718103070793,-2161.49,0.00025205,2]
[329098213,1718103070804,-3397.46,0.00025205,2]
[329098214,1718103070816,-500.0,0.00025205,2]
[329098215,1718103070827,-836.93,0.00025205,2]
[329098216,1718103070840,-500.0,0.00025205,2]
[329098217,1718103070852,-809.74,0.00025205,2]
[329098218,1718103070863,-500.0,0.00025205,2]
[329098219,1718103070874,-4475.39,0.00025205,2]
[329098220,1718103070885,-1793.26,0.00025205,2]
[329098221,1718103070896,-500.0,0.00025205,2]
[329098222,1718103070907,-2264.18,0.00025205,2]
[329098223,1718103070918,-1991.54,0.00025205,2]
[329098224,1718103070929,-592.32,0.00025205,2]
[329098225,1718103070940,-1014.4,0.00025205,2]
[329098226,1718103070951,-516.68,0.00025205,2]
[329098227,1718103070962,-881.73,0.00025205,2]
[329098228,1718103070975,-2542.46,0.00025205,2]
[329098229,1718103070986,-6118.86,0.00025205,2]
[329098230,1718103070998,-1797.291357,0.00025205,7]
[329098231,1718103071009,-1797.291357,0.00025205,7]
[329098232,1718103071022,-4350.15,0.00025205,2]
[329098233,1718103071033,-12384.13,0.00025205,2]
[329098234,1718103071044,-500.0,0.00025205,2]
[329098235,1718103071056,-1797.291357,0.00025205,7]
[329098236,1718103071070,-1210.98,0.00025205,2]
[329098237,1718103071082,-1797.291349,0.00025205,7]
[329098238,1718103071093,-625.27,0.00025205,2]
[329098239,1718103071105,-1805.227908,0.00025205,7]
[329098240,1718103071116,-1805.227908,0.00025205,7]
[329098241,1718103071127,-661.12,0.00025205,2]
[329098242,1718103071139,-500.0,0.00025205,2]
[329098243,1718103071153,-500.48,0.00025205,2]
[329098244,1718103071166,-5976.04,0.00025205,2]
[329098245,1718103071178,-683.97,0.00025205,2]
[329098246,1718103071188,-1805.227908,0.00025205,7]
[329098247,1718103071199,-1805.227911,0.00025205,7]
[329098248,1718103071211,-1301.38,0.00025205,2]
[329098249,1718103071222,-221.682962,0.00025205,7]
[329098250,1718103071233,-221.682962,0.00025205,7]
[329098251,1718103071244,-518.11,0.00025205,2]
[329098252,1718103071256,-500.0,0.00025205,2]
[329098253,1718103071268,-1440.79,0.00025205,2]
[329098254,1718103071280,-20715.74,0.00025205,2]
[329098255,1718103071291,-221.682962,0.00025205,7]
[329098256,1718103071303,-221.682959,0.00025205,7]
[329098257,1718103071315,-7241.55,0.00025205,2]
[329098258,1718103071328,-4364.25,0.00025205,2]
[329098259,1718103071340,-4364.33,0.00025205,2]
[329098260,1718103071351,-1770.11,0.00025205,2]
[329098261,1718103071362,-8941.42,0.00025205,2]
[329098262,1718103071373,-1826.27,0.00025205,2]
[329098263,1718103071385,-572.84,0.00025205,2]
[329098264,1718103071396,-151.0,0.00025205,7]
[329098265,1718103071407,-151.0,0.00025205,7]
[329098266,1718103071418,-994.59,0.00025205,2]
[329098267,1718103071429,-542.08,0.00025205,2]
[329098268,1718103071440,-1968.25,0.00025205,2]
[329098269,1718103071451,-500.0,0.00025205,2]
[329098270,1718103071462,-3352.97,0.00025205,2]
[329098271,1718103071473,-2643.2,0.00025205,2]
[329098272,1718103071484,-8077.47,0.00025205,2]
[329098273,1718103071496,-554.66,0.00025205,2]
[329098274,1718103071507,-817.34,0.00025205,2]
[329098275,1718103071522,-2323.66,0.00025205,2]
[329098276,1718103071533,-500.0,0.00025205,2]
[329098277,1718103071544,-500.0,0.00025205,2]
[329098278,1718103071556,-601.59,0.00025205,2]
[329098279,1718103071568,-500.0,0.00025205,2]
[329098280,1718103071580,-500.0,0.00025205,2]
[329098281,1718103071592,-500.0,0.00025205,2]
[329098282,1718103071605,-500.0,0.00025205,2]
[329098283,1718103071618,-1573.7,0.00025205,2]
[329098284,1718103071630,-8616.33,0.00025205,2]
[329098285,1718103071642,-500.0,0.00025205,2]
[329098286,1718103071654,-3147.86,0.00025205,2]
[329098287,1718103071665,-4497.21,0.00025205,2]
[329098288,1718103071677,-500.0,0.00025205,2]
[329098289,1718103071689,-2963.67,0.00025205,2]
[329098290,1718103071700,-698.88,0.00025205,2]
[329098291,1718103071711,-591.74,0.00025205,2]
[329098292,1718103071723,-500.0,0.00025205,2]
[329098293,1718103071734,-784.8,0.00025205,2]
[329098294,1718103071745,-4263.91,0.00025205,2]
[329098295,1718103071757,-1163.96,0.00025205,2]
[329098296,1718103071769,-1298.72,0.00025205,2]
[329098297,1718103071780,-449.998003,0.00025205,3]
[329098298,1718103071791,-2951.75,0.00025205,2]
[329098299,1718103071802,-682.636821,0.00025205,7]
[329098300,1718103071813,-1048.93,0.00025205,2]
[329098301,1718103071825,-449.998012,0.00025205,3]
[329098302,1718103071836,-682.636826,0.00025205,7]
[329098303,1718103071847,-1034.57,0.00025205,2]
[329098304,1718103071858,-4183.7,0.00025205,2]
[329098305,1718103071869,-2041.21,0.00025205,2]
[329098306,1718103071881,-742.6,0.00025205,2]
[329098307,1718103071893,-500.0,0.00025205,2]
[329098308,1718103071904,-5992.83,0.00025205,2]
[329098309,1718103071915,-500.0,0.00025205,2]
[329098310,1718103071926,-500.0,0.00025205,2]
[329098311,1718103071938,-3291.99,0.00025205,2]
[329098312,1718103071949,-500.0,0.00025205,2]
[329098313,1718103071960,-7933.92,0.00025205,2]
[329098314,1718103071971,-1089.97,0.00025205,2]
[329098315,1718103071986,-3324.68,0.00025205,2]
[329098316,1718103071997,-6862.43,0.00025205,2]
[329098317,1718103072008,-1657.61,0.00025205,2]
[329098318,1718103072020,-500.0,0.00025205,2]
[329098319,1718103072031,-895.86,0.00025205,2]
[329098320,1718103072043,-1072.91,0.00025205,2]
[329098321,1718103072057,-661.87,0.00025205,2]
[329098322,1718103072068,-2637.47,0.00025205,2]
[329098323,1718103072079,-4278.21,0.00025205,2]
[329098324,1718103072091,-3348.17,0.00025205,2]
[329098325,1718103072102,-18970.56,0.00025205,2]
[329098326,1718103072113,-500.0,0.00025205,2]
[329098327,1718103072124,-500.0,0.00025205,2]
[329098328,1718103072135,-882.16,0.00025205,2]
[329098329,1718103072146,-1295.93,0.00025205,2]
[329098330,1718103072161,-7023.77,0.00025205,2]
[329098331,1718103072356,-1205.47,0.00025205,2]
[329098332,1718103072367,-4001.26,0.00025205,2]
[329098333,1718103072378,-2822.61,0.00025205,2]
[329098334,1718103072389,-506.35,0.00025205,2]
[329098335,1718103072401,-4627.88,0.00025205,2]
[329098336,1718103072412,-500.0,0.00025205,2]
[329098337,1718103072423,-4081.07,0.00025205,2]
[329098338,1718103072434,-500.0,0.00025205,2]
[329098339,1718103072444,-500.0,0.00025205,2]
[329098340,1718103072455,-500.0,0.00025205,2]
[329098341,1718103072466,-852.86,0.00025205,2]
[329098342,1718103072476,-3114.11,0.00025205,2]
[329098343,1718103072487,-5063.42,0.00025205,2]
[329098344,1718103072498,-6951.93,0.00025205,2]
[329098345,1718103072509,-500.0,0.00025205,2]
[329098346,1718103072522,-4311.49,0.00025205,2]
[329098347,1718103072533,-558.29,0.00025205,2]
[329098348,1718103072544,-566.75,0.00025205,2]
[329098349,1718103072554,-1344.65,0.00025205,2]
[329098350,1718103072566,-872.84,0.00025205,2]
[329098351,1718103072576,-3798.71,0.00025205,2]
[329098352,1718103072588,-1542.55,0.00025205,2]
[329098353,1718103072599,-3626.02,0.00025205,2]
[329098354,1718103072610,-744.77,0.00025205,2]
[329098355,1718103072621,-500.0,0.00025205,2]
[329098356,1718103072632,-500.0,0.00025205,2]
[329098357,1718103072644,-6942.7,0.00025205,2]
[329098358,1718103072656,-2450.87,0.00025205,2]
[329098359,1718103072668,-1960.82,0.00025205,2]
[329098360,1718103072681,-755.68,0.00025205,2]
[329098361,1718103072692,-2383.54,0.00025205,2]
[329098362,1718103072706,-4453.97,0.00025205,2]
[329098363,1718103072718,-791.5,0.00025205,2]
[329098364,1718103072732,-3124.99,0.00025205,2]
[329098365,1718103072744,-500.0,0.00025205,2]
[329098366,1718103072755,-1191.11,0.00025205,2]
[329098367,1718103072766,-840.19,0.00025205,2]
[329098368,1718103072777,-5836.12,0.00025205,2]
[329098369,1718103072789,-500.0,0.00025205,2]
[329098370,1718103072801,-2312.07,0.00025205,2]
[329098371,1718103072812,-3576.14,0.00025205,2]
[329098372,1718103072823,-500.0,0.00025205,2]
[329098373,1718103072834,-500.0,0.00025205,2]
[329098374,1718103072845,-500.0,0.00025205,2]
[329098375,1718103072856,-507.09726464,0.00025205,2]
[329098376,1718103072868,-2101.15,0.00025205,2]
[329098377,1718103072879,-832.37,0.00025205,2]
[329098378,1718103072889,-1433.52,0.00025205,2]
[329098379,1718103072900,-545.76,0.00025205,2]
[329098380,1718103072911,-500.0,0.00025205,2]
[329098381,1718103072922,-972.32,0.00025205,2]
[329098382,1718103072933,-11542.35,0.00025205,2]
[329098383,1718103072944,-1776.98,0.00025205,2]
[329098384,1718103072955,-1230.55,0.00025205,2]
[329098385,1718103072966,-500.0,0.00025205,2]
[329098386,1718103072981,-500.0,0.00025205,2]
[329098387,1718103072993,-1676.04,0.00025205,2]
[329098388,1718103073003,-481.74547289,0.00025205,2]
[329098389,1718103073015,-1682.27,0.00025205,2]
[329098390,1718103073027,-500.0,0.00025205,2]
[329098391,1718103073037,-11356.85,0.00025205,2]
[329098392,1718103073048,-72473.84335013,0.00025342,2]
[329098393,1718103073060,-1125.5,0.00025342,2]
[329098394,1718103073072,-698.65,0.00025342,2]
[329098395,1718103073083,-829.38,0.00025342,2]
[329098396,1718103073095,-151.0,0.00025342,7]
[329098397,1718103073107,-151.0,0.00025342,7]
[329098398,1718103073117,-500.0,0.00025342,2]
[329098399,1718103073128,-1224.59,0.00025342,2]
[329098400,1718103073139,-1012.23,0.00025342,2]
[329098401,1718103073157,-500.0,0.00025342,2]
[329098402,1718103073169,-527.09,0.00025342,2]
[329098403,1718103073179,-151.0,0.00025342,7]
[329098404,1718103073191,-151.0,0.00025342,7]
[329098405,1718103073202,-719.45,0.00025342,2]
[329098406,1718103073213,-500.0,0.00025342,2]
[329098407,1718103073224,-1460.05,0.00025342,2]
[329098408,1718103073235,-1289.19,0.00025342,2]
[329098409,1718103073246,-500.0,0.00025342,2]
[329098410,1718103073257,-1187.92,0.00025342,2]
[329098411,1718103073268,-691.71,0.00025342,2]
[329098412,1718103073279,-500.0,0.00025342,2]
[329098413,1718103073289,-1589.91,0.00025342,2]
[329098414,1718103073300,-569.17,0.00025342,2]
[329098415,1718103073311,-500.0,0.00025342,2]
[329098416,1718103073322,-500.0,0.00025342,2]
[329098417,1718103073333,-151.0,0.00025342,7]
[329098418,1718103073344,-1922.15,0.00025342,2]
[329098419,1718103073356,-260.11,0.00025342,7]
[329098420,1718103073368,-1030.13,0.00025342,2]
[329098421,1718103073379,-500.0,0.00025342,2]
[329098422,1718103073391,-1616.22,0.00025342,2]
[329098423,1718103073401,-3561.35,0.00025342,2]
[329098424,1718103073412,-628.19,0.00025342,2]
[329098425,1718103073423,-447.143922,0.00025342,7]
[329098426,1718103073433,-447.143922,0.00025342,7]
[329098427,1718103073444,-372.050106,0.00025342,7]
[329098428,1718103073455,-500.0,0.00025342,2]
[329098429,1718103073466,-500.0,0.00025342,2]
[329098430,1718103073476,-372.050106,0.00025342,7]
[329098431,1718103073487,-500.0,0.00025342,2]
[329098432,1718103073498,-752.11,0.00025342,2]
[329098433,1718103073508,-655.83,0.00025342,2]
[329098434,1718103073520,-2058.77,0.00025342,2]
[329098435,1718103073530,-500.0,0.00025342,2]
[329098436,1718103073541,-2260.46,0.00025342,2]
[329098437,1718103073552,-1588.0,0.00025342,2]
[329098438,1718103073564,-1174.18,0.00025342,2]
[329098439,1718103073575,-177.93900381,0.00025342,2]
[329098440,1718103073586,-500.0,0.00025342,2]
[329098441,1718103073597,-236.590907,0.00025342,7]
[329098442,1718103073607,-236.590907,0.00025342,7]
[329098443,1718103073618,-1694.76,0.00025342,2]
[329098444,1718103073628,-296.518875,0.00025342,7]
[329098445,1718103073639,-803.31,0.00025342,2]
[329098446,1718103073649,-296.518875,0.00025342,7]
[329098447,1718103073660,-995.49,0.00025342,2]
[329098448,1718103073671,-500.0,0.00025342,2]
[329098449,1718103073682,-500.0,0.00025342,2]
[329098450,1718103073692,-1020.06,0.00025342,2]
[329098451,1718103073703,-860.63,0.00025342,2]
[329098452,1718103073714,-473.378943,0.00025342,7]
[329098453,1718103073725,-151.0,0.00025342,7]
[329098454,1718103073735,-599.38,0.00025342,2]
[329098455,1718103073746,-473.378943,0.00025342,7]
[329098456,1718103073756,-940.8,0.00025342,2]
[329098457,1718103073769,-500.0,0.00025342,2]
[329098458,1718103073779,-1420.19,0.00025342,2]
[329098459,1718103073790,-2225.45,0.00025342,2]
[329098460,1718103073801,-243.796985,0.00025342,7]
[329098461,1718103073811,-500.0,0.00025342,2]
[329098462,1718103073821,-243.796985,0.00025342,7]
[329098463,1718103073832,-2026.42,0.00025342,2]
[329098464,1718103073842,-165.20505,0.00025342,7]
[329098465,1718103073852,-2906.52,0.00025342,2]
[329098466,1718103073864,-500.0,0.00025342,2]
[329098467,1718103073875,-165.20505,0.00025342,7]
[329098468,1718103073885,-163.288509,0.00025342,7]
[329098469,1718103073896,-646.123264,0.00025342,7]
[329098470,1718103073907,-163.288509,0.00025342,7]
[329098471,1718103073917,-646.123264,0.00025342,7]
[329098472,1718103073928,-500.0,0.00025342,2]
[329098473,1718103073938,-500.0,0.00025342,2]
[329098474,1718103073950,-816.843791,0.00025342,7]
[329098475,1718103073960,-500.0,0.00025342,2]
[329098476,1718103073972,-500.0,0.00025342,2]
[329098477,1718103073986,-500.0,0.00025342,2]
[329098478,1718103073996,-164.176193,0.00025342,7]
[329098479,1718103074006,-816.843791,0.00025342,7]
[329098480,1718103074019,-531.46415875,0.00025342,2]
[329098481,1718103074029,-151.0,0.00025342,7]
[329098482,1718103074039,-500.0,0.00025342,2]
[329098483,1718103074052,-500.0,0.00025342,2]
[329098484,1718103074065,-821.93,0.00025342,2]
[329098485,1718103074077,-154.372811,0.00025342,7]
[329098486,1718103074088,-714.51,0.00025342,2]
[329098487,1718103074099,-154.372811,0.00025342,7]
[329098488,1718103074110,-500.0,0.00025342,2]
[329098489,1718103074121,-576.65,0.00025342,2]
[329098490,1718103074132,-500.0,0.00025342,2]
[329098491,1718103074142,-697.03,0.00025342,2]
[329098492,1718103074158,-356.13430484,0.00025342,2]
[329098493,1718103074169,-1049.071361,0.00025342,7]
[329098494,1718103074179,-500.0,0.00025342,2]
[329098495,1718103074190,-837.720545,0.00025342,7]
[329098496,1718103074201,-520.77,0.00025342,2]
[329098497,1718103074213,-500.0,0.00025342,2]
[329098498,1718103074223,-1049.071361,0.00025342,7]
[329098499,1718103074234,-500.0,0.00025342,2]
[329098500,1718103074245,-837.720545,0.00025342,7]
[329098501,1718103074256,-1080.442381,0.00025342,7]
[329098502,1718103074269,-151.0,0.00025342,7]
[329098503,1718103074280,-151.0,0.00025342,7]
[329098504,1718103074291,-644.63,0.00025342,2]
[329098505,1718103074302,-2402.32,0.00025342,2]
[329098506,1718103074312,-167.018151,0.00025342,7]
[329098507,1718103074323,-1080.442381,0.00025342,7]
[329098508,1718103074335,-500.0,0.00025342,2]
[329098509,1718103074346,-288.664985,0.00025342,7]
[329098510,1718103074357,-500.0,0.00025342,2]
[329098511,1718103074367,-288.664985,0.00025342,7]
[329098512,1718103074377,-500.0,0.00025342,2]
[329098513,1718103074387,-500.0,0.00025342,2]
[329098514,1718103074398,-1518.18,0.00025342,2]
[329098515,1718103074408,-500.0,0.00025342,2]
[329098516,1718103074418,-6631.54,0.00025342,2]
[329098517,1718103074428,-500.0,0.00025342,2]
[329098518,1718103074438,-500.0,0.00025342,2]